Cogmind - Beta 13 @@@ ROGUE MODE // 2024.06.14 @ 01:15:50 // Winter2019/RPGLIKE Player: admiral_len Result: Destroyed by X-62 Marksman with Pulse Rifle Performance ------------- Evolutions (2) 1000 Regions Visited (3) 600 Robots Destroyed (45) 225 Value Destroyed (1213) 1213 Prototype IDs (0) 0 Alien Tech Used (0) 0 Bonus (0) 0 TOTAL SCORE: 3038 Bonus ------- None Cogmind --------- Core Integrity 0/1000 Matter 285/300 Energy 140/140 System Corruption 0% Temperature Cool (22) Movement Treading (160) Location -8/Materials Parts ------- > --- POWER (1) -------- Light Deuterium Engine > --- PROPULSION (2) --- Light Treads Light Treads > --- UTILITY (4) ------ Targeting Computer Hardened Medium Armor Plating > --- WEAPON (3) ------- Battle Rifle Subdweller Machine Gun Subdweller Machine Gun > --- INVENTORY (0) ---- (None) Peak State ------------ > --- POWER ------------ Light Nuclear Core > --- PROPULSION ------- Light Treads Light Treads > --- UTILITY ---------- Improved Heat Sink Targeting Computer Hardened Medium Armor Plating > --- WEAPON ----------- Battle Rifle Subdweller Machine Gun Subdweller Machine Gun > --- INVENTORY -------- (None) [Rating: 18] Favorites ----------- Power Light Nuclear Core Engine Ion Engine Power Core Light Nuclear Core Propulsion Light Treads Treads Light Treads Utility Improved Heat Sink Device Improved Heat Sink Processor Targeting Computer Protection Light Armor Plating Weapon Subdweller Machine Gun Energy Gun Medium Laser Ballistic Gun Subdweller Machine Gun Build | -11 -10 -10 -8 ------- Run | Yrd Mat Sub Mat Slots Evolved 6 | 3 . 2 1 Power . | . . . . Propulsion 1 | 1 . . . Utility 3 | 1 . 1 1 Weapon 2 | 1 . 1 . Parts Attached 17 | 5 6 3 3 Power 5 | 1 2 1 1 Engine 3 | 1 1 . 1 Core 2 | . 1 1 . Reactor . | . . . . Propulsion 3 | 2 1 . . Treads 3 | 2 1 . . Leg . | . . . . Wheel . | . . . . Hover . | . . . . Flight . | . . . . Utility 4 | . 2 . 2 Device 1 | . 1 . . Storage . | . . . . Processor 1 | . . . 1 Hackware . | . . . . Protection 2 | . 1 . 1 Artifact . | . . . . Weapon 5 | 2 1 2 . Energy Gun 1 | 1 . . . Energy Cannon . | . . . . Ballistic Gun 4 | 1 1 2 . Ballistic Cannon . | . . . . Launcher . | . . . . Special Weapon . | . . . . Impact Weapon . | . . . . Slashing Weapon . | . . . . Piercing Weapon . | . . . . Special Melee Weapon . | . . . . Unidentified Prototypes . | . . . . Parts Lost 1 | . . 1 . Power . | . . . . Propulsion . | . . . . Utility 1 | . . 1 . Weapon . | . . . . Highest Loss Streak 1 | . . 1 . To Critical Strikes . | . . . . Average Slot Usage (%) 87 | . 92 83 87 Engine 2 | . 5 . 3 Core 10 | . 8 11 6 Treads 25 | . 28 23 20 Device 10 | . 8 11 10 Protection 8 | . 12 4 8 Energy Gun 4 | . 10 . . Ballistic Gun 24 | . 17 30 30 Naked Turns . | . . . . Heaviest Build 24 | 7 13 16 24 Greatest Support 40 | 40 40 40 40 Greatest Overweight (x) . | . . . . Average Overweight (x) . | . . . . Largest Inventory Capacity . | . . . . Average Capacity . | . . . . Most Carried . | . . . . Average Carried . | . . . . Final Capacity . | . . . . Final Carried . | . . . . Class Distribution -------------------- 63% | Mutant 34% | Scavenger-Gunner Dominant Class ---------------- Mutant | -10/Materials Scavenger-Gunner | -10/Subcaves Scavenger-Gunner | -8/Materials Resources | -11 -10 -10 -8 ----------- Run | Yrd Mat Sub Mat Matter Collected 1090 | 232 254 356 248 Remotely . | . . . . Salvage Created 1225 | . 460 438 327 Parts 95 | . 31 46 18 Haulers Intercepted . | . . . . Recyclers Shooed 2 | . 1 . 1 Parts Field Recycled . | . . . . Retrieved Matter . | . . . . Parts Self-Destructed 12 | . . 12 . Prevented . | . . . . Kills | -11 -10 -10 -8 ------- Run | Yrd Mat Sub Mat Combat Hostiles Destroyed 40 | . 17 15 8 Guns 40 | . 17 15 8 Classes Destroyed 11 | . 5 3 3 Builder 1 | . . . 1 Recycler 1 | . . . 1 Operator 1 | . 1 . . Watcher 2 | . 1 . 1 Swarmer 16 | . 8 4 4 Grunt 11 | . 6 2 3 Sentry 1 | . . 1 . Heavy 1 | . . . 1 Artisan 1 | . . 1 . Cobbler 1 | . . 1 . Subdweller 11 | . 3 8 . Best Kill Streak 4 | . 4 3 4 Combat Bots Only 4 | . 4 3 4 Max Kills in Single Turn 1 | . 1 1 1 Gunslinging . | . . . . Exploded . | . . . . Melee . | . . . . Uniques/NPCs Destroyed . | . . . . Combat | -11 -10 -10 -8 -------- Run | Yrd Mat Sub Mat Hostile Shots Fired 246 | . 98 74 74 Missed 75 | . 31 22 22 Damage Taken 2970 | . 909 964 1097 Core 2268 | . 659 775 834 Absorbed by Shields . | . . . . Redirected to Core 1927 | . 626 593 708 Ignored by Resistances 75 | . . . 75 Core Remaining (%) 87 | 100 . 75 . Volleys Fired 151 | . 59 53 39 Largest 3 | . 2 3 3 Hottest 85 | . 70 85 85 Shots Fired 325 | . 109 119 97 Gun 325 | . 109 119 97 Cannon . | . . . . Launcher . | . . . . Special . | . . . . Kinetic 277 | . 61 119 97 Thermal 48 | . 48 . . Explosive . | . . . . Electromagnetic . | . . . . Robot Hit Streak 27 | . 17 27 16 Robot Miss Streak 4 | . 4 2 3 Penetration Max . | . . . . Secondary Targets 4 | . 2 . 2 Max Gunslinging Chain 1 | . 1 . 1 Shots Hit Robots 242 | . 74 94 74 Core Hits 83 | . 29 35 19 Critical Kills 2 | . . 1 1 Critical Parts Destroyed 1 | . . . 1 Critical Strikes 10 | . 6 2 2 Burn 6 | . 6 . . Destroy 4 | . . 2 2 Melee Attacks . | . . . . Impact . | . . . . Slashing . | . . . . Piercing . | . . . . Sneak Attacks . | . . . . Combat Hostiles . | . . . . Follow-up Attacks . | . . . . Damage Inflicted 3856 | . 993 1446 1417 Guns 3828 | . 967 1446 1415 Cannons . | . . . . Explosions . | . . . . Melee . | . . . . Ramming 28 | . 26 . 2 Kinetic 3390 | . 529 1446 1415 Thermal 438 | . 438 . . Explosive . | . . . . Electromagnetic . | . . . . Impact . | . . . . Slashing . | . . . . Piercing . | . . . . Highest Corruption . | . . . . Average Corruption . | . . . . Corruption Purged . | . . . . Corruption Blocked . | . . . . Overload Shots . | . . . . Overflow Damage . | . . . . Projectiles . | . . . . Explosions . | . . . . Melee . | . . . . Knockbacks . | . . . . Impact . | . . . . Kinetic . | . . . . Secondary . | . . . . Self-Inflicted Damage . | . . . . Shots . | . . . . Rammed 5 | . 4 . 1 Targets Rammed 5 | . 4 . 1 Kicked . | . . . . Crushed . | . . . . Highest Temperature 144 | . 144 . 70 Average Temperature 30 | . 47 . 15 Received Heat Transfer 681 | . 270 141 270 Siege Activations . | . . . . Robots Corrupted . | . . . . Combat Hostiles . | . . . . Parts Fried . | . . . . Impact Corruptions . | . . . . Robots Melted . | . . . . Combat Hostiles . | . . . . Parts Melted 11 | . 9 2 . Heat Transferred 1739 | . 1739 . . Parts Sabotaged . | . . . . Parts Stolen . | . . . . Parts Stripped . | . . . . Power Chain Reactions . | . . . . Alert | -11 -10 -10 -8 ------- Run | Yrd Mat Sub Mat Peak Influence 228 | . 197 . 228 Initial . | . . . . Average 107 | . 114 . 104 Maximum Alert Level 1 | . . . 1 Low Security (%) 97 | 100 100 . 85 Level 1 2 | . . . 14 Level 2 . | . . . . Level 3 . | . . . . Level 4 . | . . . . Level 5 . | . . . . High Security . | . . . . Max Security . | . . . . Squads Dispatched 7 | . 3 . 4 Investigation 3 | . 3 . . Extermination . | . . . . Reinforcement 4 | . . . 4 Assault . | . . . . Garrison . | . . . . Intercept . | . . . . Searches Triggered . | . . . . Construction Impeded . | . . . . Haulers Reinforced . | . . . . Active Scanning Responses . | . . . . Cargo Convoy Interrupts . | . . . . Stealth | -11 -10 -10 -8 --------- Run | Yrd Mat Sub Mat Distress Signals 5 | . 4 . 1 Communications Jammed . | . . . . Distress Signals . | . . . . Times Spotted 62 | . 32 16 14 Peak Tracking Total 6 | . 6 3 4 Tactical Retreats 2 | . 2 . . Traps | -11 -10 -10 -8 ------- Run | Yrd Mat Sub Mat Traps Triggered 3 | . 3 . . Indirectly . | . . . . Trap Hack Attempts . | . . . . Triggered . | . . . . Disarmed 5 | . 5 . . Reprogrammed . | . . . . Reused . | . . . . Traps Extracted . | . . . . Installed . | . . . . Triggered 1 | . . 1 . Machines | -11 -10 -10 -8 ---------- Run | Yrd Mat Sub Mat Machines Disabled . | . . . . Max in Single Turn . | . . . . Machines Repaired . | . . . . Machines Dismantled . | . . . . Machines Sabotaged . | . . . . Overloaded Fab Kills . | . . . . Hacking | -11 -10 -10 -8 --------- Run | Yrd Mat Sub Mat Machines Accessed 4 | . 4 . . Terminals 3 | . 3 . . Fabricators . | . . . . Repair Stations . | . . . . Recycling Units 1 | . 1 . . Scanalyzers . | . . . . Garrison Access . | . . . . Total Hacks 9 | . 9 . . Successful 4 | . 4 . . Failed 5 | . 5 . . Catastrophic 1 | . 1 . . Database Lockouts . | . . . . Manual . | . . . . Terminals 6 | . 6 . . Fabricators . | . . . . Repair Stations . | . . . . Recycling Units 3 | . 3 . . Scanalyzers . | . . . . Garrison Access . | . . . . Terminal Hacks 3 | . 3 . . Locate Traps 2 | . 2 . . Disarm Traps 1 | . 1 . . Fabricator Hacks . | . . . . Repair Station Hacks . | . . . . Recycling Unit Hacks 1 | . 1 . . Report Inventory 1 | . 1 . . Scanalyzer . | . . . . Garrison Access Hacks . | . . . . Unauthorized Hacks . | . . . . Terminals . | . . . . Fabricators . | . . . . Repair Stations . | . . . . Recycling Units . | . . . . Scanalyzers . | . . . . Garrison Access . | . . . . Data Cores Recovered 1 | . 1 . . Used . | . . . . Hacking Detections 3 | . 3 . . Full Trace Events 2 | . 2 . . Feedback Events . | . . . . Feedback Blocked . | . . . . Robot Schematics Acquired . | . . . . Robots Built . | . . . . Authchips . | . . . . Time . | . . . . Total Robot Build Rating . | . . . . Part Schematics Acquired . | . . . . Parts Built . | . . . . Authchips . | . . . . Time . | . . . . Total Part Build Rating . | . . . . Parts Repaired . | . . . . Time . | . . . . Parts Recycled . | . . . . Recycled Matter . | . . . . Retrieved Matter . | . . . . Retrieved Components . | . . . . Parts Scanalyzed . | . . . . Part Schematics Acquired . | . . . . Parts Damaged . | . . . . Bothacking | -11 -10 -10 -8 ------------ Run | Yrd Mat Sub Mat Used RIF Installer . | . . . . Robots Hacked . | . . . . Non-combat . | . . . . Combat . | . . . . Robot Hacks Applied . | . . . . Relay Couplers Released . | . . . . Fabnet Peak Effective % . | . . . . Robots Rewired . | . . . . Allies Hacked . | . . . . Hacks Repelled . | . . . . Allies | -11 -10 -10 -8 -------- Run | Yrd Mat Sub Mat Total Allies . | . . . . Largest Group . | . . . . Highest-Rated Group . | . . . . Highest-Rated Ally . | . . . . Total Orders . | . . . . Ally Attacks . | . . . . Total Damage . | . . . . Kills . | . . . . Allies Corrupted . | . . . . Allies Melted . | . . . . Intel | -11 -10 -10 -8 ------- Run | Yrd Mat Sub Mat Robot Analysis Total . | . . . . Derelict Logs Recovered 1 | . . 1 . Drone Launches . | . . . . Drone Recoveries . | . . . . Exploration | -11 -10 -10 -8 ------------- Run | Yrd Mat Sub Mat Turns Passed 3118 | 69 1328 1428 293 Spaces Moved 1545 | 41 653 749 102 Core 3 | 3 . . . Treads 1542 | 38 653 749 102 Legs . | . . . . Wheels . | . . . . Hover . | . . . . Flight . | . . . . Fastest Speed 50 | 50 160 160 160 Average Speed 159 | 151 160 160 160 Slowest Speed 160 | 160 160 160 160 Overloaded Moves . | . . . . Propulsion Burnouts . | . . . . Robots Hopped . | . . . . Cave-ins Triggered . | . . . . Exploration Rate (%) 35 | 4 87 38 13 Regions Visited 3 Branch Regions 1 Pre-discovered Areas . | . . . . Known Exits Taken . | . . . . Unknown Exits Taken 3 | 1 1 1 . Scrap Searched 6 | . . 6 . Spaces Dug . | . . . . Terrain Destroyed 4 | . . . 4 Melee . | . . . . Projectile 4 | . . . 4 AOE . | . . . . Terrain Rammed . | . . . . Walls Destroyed . | . . . . Machines Disabled . | . . . . Actions | -11 -10 -10 -8 --------- Run | Yrd Mat Sub Mat Total 1897 | 45 824 875 153 Wait 112 | . 82 27 3 Move 1542 | 40 652 748 102 Hop . | . . . . Pick Up . | . . . . Fast Attach 14 | 5 5 2 2 Attach . | . . . . Detach . | . . . . Swap 3 | . 1 1 1 Drop 6 | . 3 2 1 Fire 151 | . 59 53 39 Melee . | . . . . Ram . | . . . . Kick . | . . . . Crush 5 | . 4 . 1 Escape Stasis . | . . . . Rewire . | . . . . Trap . | . . . . Miscellaneous 64 | . 18 42 4 Route ------- -11/Scrapyard -10/Materials (discovered 4 exits: [*Mat x2] / [*Min] / [*Sub]) -10/Subcaves (discovered 2 exits: [*Mat x2]) -8/Materials History --------- Turn | Location | Event 4 | -11/Scrapyard | Upgraded with Propulsion slot (x1) 4 | -11/Scrapyard | Upgraded with Utility slot (x1) 4 | -11/Scrapyard | Upgraded with Weapon slot (x1) 12 | -11/Scrapyard | Discovered new exit (range 15) 70 | -11/Scrapyard | Entered Materials 302 | -10/Materials | Discovered new exit (range 16) 318 | -10/Materials | Build established: Mutant 435 | -10/Materials | Discovered new exit (range 8) 843 | -10/Materials | Discovered new exit (range 16) 970 | -10/Materials | Derelicts attacked the area 1142 | -10/Materials | Reached level 2 1196 | -10/Materials | Discovered new exit (range 5) 1398 | -10/Materials | Entered Subcaves 1493 | -10/Subcaves | Learned Materials stockpile data 1647 | -10/Subcaves | Disturbed a concealed Subdweller 1840 | -10/Subcaves | Reached level 3 1858 | -10/Subcaves | Upgraded with Utility slot (x1) 1858 | -10/Subcaves | Upgraded with Weapon slot (x1) 1994 | -10/Subcaves | Discovered new exit (range 10) 2122 | -10/Subcaves | A swath of the cavern ceiling suddenly collapsed 2146 | -10/Subcaves | Discovered new exit (range 13) 2153 | -10/Subcaves | Ambushed by angry Subdweller bent on revenge 2290 | -10/Subcaves | Build established: Scavenger-Gunner 2412 | -10/Subcaves | Disturbed a concealed Subdweller 2826 | -10/Subcaves | Entered Materials 2828 | -8/Materials | Reached level 4 2838 | -8/Materials | Upgraded with Utility slot (x1) 3045 | -8/Materials | Core integrity fell below 50% 3092 | -8/Materials | Reached level 5 3105 | -8/Materials | Core integrity fell below 20% 3119 | -8/Materials | Destroyed by X-62 Marksman with Pulse Rifle Last Messages --------------- R-06 Scavenger collects Terrain Scanner. Acquired 28 matter. R-06 Scavenger collects Lgt. Nuclear Core. Slammed into U-05 Engineer. ALERT: Suspicious intruders detected, dispatching Specialist reinforcements to area. R-06 Scavenger collects Imp. Heat Sink. Reached level 5. G-47 Trooper destroyed. Acquired 10 matter. Penetrated by Slug. U-05 Engineer builds a Door. Acquired 5 matter. Penetrated by Slug. Acquired 5 matter. Penetrated by Slug. H-61 Shepherd calls for reinforcements. ALERT: Hostile activity reported, dispatching reinforcements to area. U-05 Engineer builds a Wall. Imp. Heat Sink blasted off. Map ----- +----------------------------------------------------+ | ??????????????????????#####?????????????? #????? | | ???????????????###????# #?????????????? #????? | | ???????????????# ??# #?????????????? #????? | | ???????????????# # #?????????????# ##???? | | ???????????????# + ##########+### #???? | | ???????????????# # # | | ???????????????# ??# + | | ???????????????# ????# #???? | | ???????????????#??????# ###+########## #???? | | ????????????########### #" #?????# ##???? | | ????????????# = # ## ####### #????? | | ????????????# """ + ## """ # !#! #????? | | ????????????# "T" # ## """ %+ *+ #????? | | ????????????# # ## """ # =# #????? | | ????????????########### ## # # #????? | | ?????????????? ??# ###+########## % ##???? | | ??????????????"" """ # # ####### ##??? | | ??????????????"" """ + # ##??? | | ??????????????"" """ # # #???? | | ?????????????? # # #???? | | ?????????????#######?### ### % ####### #???? | | ???????????????????????#u#####+#####???#######???? | | ???????????????????????#u## % #?????????????? | | ???????????? !!! ###=##%!!!""" #?????????????? | | ???????????????? """ + %x%+%!^^""" #?????????????? | | ???????????????? """ ####@# !! """ #?????????????? | | ????????????????????????#!# ! #?????????????? | | ????????????????????????#H# """ #?????????????? | | ????????????????????????# # """ #?????????????? | | ????????????????????????# # ^ """ #?????????????? | | ????????????????????????# # #?????????????? | | ????????????????????????# #########??????????????? | | ????????????????????????# #??????????????????????? | | ???????????????????????? ??????????????????????? | | ????????????????????????###??????????????????????? | | ?????????????????????????????????????????????????? | | ?????????????????????????????????????????????????? | | ?????????????????????????????????????????????????? | | ?????????????????????????????????????????????????? | | ?????????????????????????????????????????????????? | | ?????????????????????????????????????????????????? | | ?????????????????????????????????????????????????? | | ?????????????????????????????????????????????????? | | ?????????????????????????????????????????????????? | | ?????????????????????????????????????????????????? | | ?????????????????????????????????????????????????? | | ?????????????????????????????????????????????????? | | ?????????????????????????????????????????????????? | | ?????????????????????????????????????????????????? | | ?????????????????????????????????????????????????? | +----------------------------------------------------+ Best States ------------- Heat Dissipation 39 Energy Generation 14 Energy Capacity 250 Matter Stores 300 Matter Capacity 300 Sight Range 16 Terrain Scan Density 10 Armor Coverage 225 Resistance: KI 5 Resistance: TH 5 Evasion (%) 40 Targeting Accuracy 5 Recoil Reduction 2 Item Schematics ----------------- None Robot Schematics ------------------ None Fabricated ------------ Nothing Alien Tech Used ----------------- None Achievements -------------- None Challenges ------------ None RPGLIKE | -11 -10 -10 -8 --------- Run | Yrd Mat Sub Mat Levels Raised 4 | . 1 1 2 XP Earned 9020 | 3000 1735 1800 2485 XP Spent 7380 | 2880 1500 1600 1400 Upgrades 21 | 13 3 2 3 Propulsion Slot 1 | 1 . . . Utility Slot 3 | 1 . 1 1 Weapon Slot 2 | 1 . 1 . Core Integrity 8 | 8 . . . Ranged Accuracy 4 | 2 2 . . KI Resistance % 1 | . . . 1 TH Resistance % 1 | . . . 1 KI Damage % 1 | . 1 . . Protomatter Created 562 | . 188 352 22 Integrity Restored 1326 | . 375 885 66 Core 1256 | . 375 815 66 Parts 70 | . . 70 . Protomatter Decayed 56 | . . 56 . Game ------ Seed AerolevWeldingRay Manual? 0 Play Time 00:18:07 Cumulative 16.9 hours Start 2024.06.14 @ 00:59:37 End 2024.06.14 @ 01:15:50 Sessions 1 Manual Loads 0 Difficulty Rogue Special Mode Winter2019/RPGLIKE Game No. 34 Rogue 34 Adventurer 0 Explorer 0 Win Type - Total 0 Types 0/0/0/0/0/0/0/0/0 Lore% 6 Gallery% 16 Achievement% 15 Wizard Run 0 Options --------- Layout 0 ASCII 0 Keyboard 0 Movement Mouse Keybinds 0 Fullscreen 1 Font 18/SmallcapsGlow Map View 38x25 Zoom Use 100% Tactical HUD 0 Map Filters NONE Filters NONE Steam 1 RUN: e5c66c94-f8e3-45c1-accc-6e8b9f1578d2